[Event "Ebbe cup 43"]
[Site "Schackcentrum, Vegatan 20, Gothenburg, Sweden"]
[Date "2022.09.11"]
[Round "4.2"]
[White "Andersson, Sol"]
[Black "Imani Lasaki, Hamed"]
[Result "1/2-1/2"]
[TimeControl "90 minutes for 40 moves + 15 minutes for the rest of the game + 30 seconds per move from move one."]
[WhiteFideId "1762702"]
[BlackFideId "1766970"]
[WhiteElo "1454"]
[BlackElo "1595"]

1. e4 {[%clk 01:30:57]} {[%emt 00:00:03]} c5 {[%clk 01:22:16]} {[%emt
00:08:45]} 2. Nf3 {[%clk 01:31:15]} {[%emt 00:00:11]} d6 {[%clk 01:22:28]}
{[%emt 00:00:19]} 3. d4 {[%clk 01:31:04]} {[%emt 00:00:41]} cxd4 {[%clk
01:22:42]} {[%emt 00:00:16]} 4. Nxd4 {[%clk 01:31:23]} {[%emt 00:00:09]} Nf6
{[%clk 01:22:14]} {[%emt 00:00:59]} 5. Nc3 {[%clk 01:31:34]} {[%emt 00:00:18]}
a6 {[%clk 01:21:38]} {[%emt 00:01:08]} 6. Be3 {[%clk 01:29:31]} {[%emt
00:02:31]} e5 {[%clk 01:19:06]} {[%emt 00:03:03]} 7. Nb3 {[%clk 01:27:38]}
{[%emt 00:02:22]} Be7 {[%clk 01:17:47]} {[%emt 00:01:49]} 8. Bc4 {[%clk
01:25:29]} {[%emt 00:02:37]} Nbd7 {[%emt 00:07:52]} 9. f3 {[%clk 01:19:19]}
{[%emt 00:05:12]} O-O {[%clk 01:11:54]} {[%emt 00:00:31]} 10. Qd2 {[%clk
01:17:11]} {[%emt 00:02:37]} b5 {[%clk 01:10:54]} {[%emt 00:01:31]} 11. Bd5
{[%clk 01:17:24]} {[%emt 00:00:17]} Nxd5 {[%clk 01:06:43]} {[%emt 00:04:42]} 12.
Nxd5 {[%clk 01:17:30]} {[%emt 00:00:23]} Bb7 {[%clk 01:01:59]} {[%emt
00:05:15]} 13. Bf2 {[%clk 01:16:54]} {[%emt 00:01:04]} Bxd5 {[%clk 01:01:35]}
{[%emt 00:00:55]} 14. Qxd5 {[%clk 01:17:06]} {[%emt 00:00:17]} Nf6 {[%clk
01:01:36]} {[%emt 00:00:30]} 15. Qd2 {[%clk 01:17:01]} {[%emt 00:00:34]} Qc7
{[%clk 00:58:31]} {[%emt 00:03:36]} 16. O-O {[%clk 01:16:35]} {[%emt 00:00:54]}
Rfd8 {[%clk 00:57:37]} {[%emt 00:01:25]} 17. Rfe1 {[%clk 01:10:50]} {[%emt
00:06:13]} d5 {[%clk 00:54:51]} {[%emt 00:03:19]} 18. exd5 {[%clk 01:11:00]}
{[%emt 00:00:20]} Nxd5 {[%clk 00:53:21]} {[%emt 00:02:00]} 19. Qe2 {[%clk
01:11:11]} {[%emt 00:00:19]} f6 {[%clk 00:51:10]} {[%emt 00:02:41]} 20. Rac1
{[%clk 01:08:08]} {[%emt 00:03:31]} Nf4 {[%clk 00:48:38]} {[%emt 00:03:04]} 21.
Qe4 {[%clk 01:04:35]} {[%emt 00:03:59]} a5 {[%clk 00:47:55]} {[%emt 00:01:17]}
22. a4 {[%clk 00:58:56]} {[%emt 00:06:08]} bxa4 {[%clk 00:41:46]} {[%emt
00:06:39]} 23. Qxa4 {[%clk 00:59:02]} {[%emt 00:00:22]} Bb4 {[%clk 00:36:37]}
{[%emt 00:05:40]} 24. Re3 {[%clk 00:51:16]} {[%emt 00:08:10]} Bd2 {[%clk
00:34:54]} {[%emt 00:02:20]} 25. Nxd2 {[%clk 00:51:02]} {[%emt 00:00:43]} Rxd2
{[%clk 00:35:20]} {[%emt 00:00:05]} 26. Qe4 {[%clk 00:50:10]} {[%emt 00:01:15]}
Rc8 {[%clk 00:27:40]} {[%emt 00:08:11]} 27. Bg3 {[%clk 00:45:42]} {[%emt
00:05:04]} Rxg2+ {[%clk 00:28:02]} {[%emt 00:00:08]} 28. Kf1 {[%clk 00:45:56]}
{[%emt 00:00:15]} Rxc2 {[%clk 00:27:39]} {[%emt 00:00:53]} 29. Rxc2 {[%clk
00:45:37]} {[%emt 00:00:49]} Qxc2 {[%clk 00:27:35]} {[%emt 00:00:34]} 30. Bxf4
{[%clk 00:45:58]} {[%emt 00:00:09]} Qxe4 {[%clk 00:23:42]} {[%emt 00:04:24]} 31.
Rxe4 {[%clk 00:46:00]} {[%emt 00:00:27]} exf4 {[%clk 00:24:07]} {[%emt
00:00:05]} 32. Ra4 {[%clk 00:46:06]} {[%emt 00:00:24]} Rc1+ {[%clk 00:24:01]}
{[%emt 00:00:36]} 33. Kg2 {[%clk 00:46:31]} {[%emt 00:00:05]} Rc2+ {[%clk
00:24:17]} {[%emt 00:00:14]} 34. Kh3 {[%clk 00:46:54]} {[%emt 00:00:07]} Rxb2
{[%clk 00:24:39]} {[%emt 00:00:09]} 35. Rxa5 {[%clk 00:47:20]} {[%emt
00:00:04]} g5 {[%clk 00:23:16]} {[%emt 00:01:52]} 36. Ra7 {[%clk 00:47:12]}
{[%emt 00:00:38]} h5 {[%clk 00:22:24]} {[%emt 00:01:23]} 37. Ra6 {[%clk
00:45:05]} {[%emt 00:02:38]} Kg7 {[%clk 00:22:32]} {[%emt 00:00:22]} 38. Ra5
{[%clk 00:45:23]} {[%emt 00:00:11]} Rf2 {[%clk 00:20:36]} {[%emt 00:02:25]} 39.
Ra3 {[%clk 00:45:32]} {[%emt 00:00:21]} Kg6 {[%clk 00:20:16]} {[%emt 00:00:48]}
40. Rb3 {[%clk 00:45:35]} {[%emt 00:00:31]} Kf5 {[%clk 00:19:48]} {[%emt
00:00:59]} 41. Rb5+ {[%clk 00:45:44]} {[%emt 00:00:21]} Ke6 {[%clk 00:19:50]}
{[%emt 00:00:27]} 42. Rb6+ {[%clk 00:45:39]} {[%emt 00:00:35]} Ke5 {[%clk
00:19:50]} {[%emt 00:00:29]} 43. Rb5+ {[%clk 00:45:52]} {[%emt 00:00:18]} Kd4
{[%clk 00:19:46]} {[%emt 00:00:34]} 44. Rb4+ {[%clk 00:44:49]} {[%emt
00:01:33]} Kc3 {[%clk 00:17:57]} {[%emt 00:02:18]} 45. Rb3+ {[%clk 00:45:03]}
{[%emt 00:00:16]} Kd4 {[%clk 00:18:04]} {[%emt 00:00:24]} 46. Rd3+ {[%clk
00:44:43]} {[%emt 00:00:49]} Ke5 {[%clk 00:18:03]} {[%emt 00:00:31]} 47. Rd5+
{[%clk 00:45:04]} {[%emt 00:00:07]} Ke6 {[%clk 00:18:00]} {[%emt 00:00:35]} 48.
Re5+ {[%clk 00:43:16]} {[%emt 00:02:18]} Kf7 {[%clk 00:18:04]} {[%emt
00:00:25]} 49. Re7+ {[%clk 00:43:38]} {[%emt 00:00:08]} Kg6 {[%clk 00:18:01]}
{[%emt 00:00:33]} 50. Rg7+ {[%clk 00:44:02]} {[%emt 00:00:06]} Kh6 {[%clk
00:17:53]} {[%emt 00:00:38]} 51. Rg6+ {[%clk 00:44:22]} {[%emt 00:00:11]} Kh7
{[%clk 00:17:45]} {[%emt 00:00:38]} 52. Rg7+ {[%clk 00:44:46]} {[%emt
00:00:06]} 1/2-1/2

[Event "Ebbe cup 43"]
[Site "Schackcentrum, Vegatan 20, Gothenburg, Sweden"]
[Date "2022.09.11"]
[Round "4.3"]
[White "Josefsson, Ivar"]
[Black "Konduru, Sairahul"]
[Result "1-0"]
[TimeControl "90 minutes for 40 moves + 15 minutes for the rest of the game + 30 seconds per move from move one."]
[WhiteFideId "1766040"]
[BlackFideId "1768247"]
[WhiteElo "1634"]
[BlackElo "1281"]

1. d4 {[%clk 01:30:58]} {[%emt 00:00:02]} c6 {[%clk 01:30:39]} {[%emt
00:00:21]} 2. c4 {[%clk 01:31:23]} {[%emt 00:00:05]} d5 {[%clk 01:31:05]}
{[%emt 00:00:05]} 3. Nc3 {[%clk 01:31:49]} {[%emt 00:00:04]} Nf6 {[%clk
01:31:06]} {[%emt 00:00:28]} 4. e3 {[%clk 01:32:12]} {[%emt 00:00:07]} Bg4
{[%clk 01:30:38]} {[%emt 00:00:58]} 5. f3 {[%clk 01:29:14]} {[%emt 00:03:27]}
Bf5 {[%clk 01:29:02]} {[%emt 00:02:06]} 6. cxd5 {[%clk 01:28:35]} {[%emt
00:01:10]} cxd5 {[%clk 01:29:07]} {[%emt 00:00:25]} 7. Qb3 {[%clk 01:29:00]}
{[%emt 00:00:05]} Qd7 {[%clk 01:29:02]} {[%emt 00:00:35]} 8. g4 {[%clk
01:19:47]} {[%emt 00:09:43]} Be6 {[%clk 01:26:26]} {[%emt 00:03:05]} 9. Nge2
{[%clk 01:14:46]} {[%emt 00:05:31]} Nc6 {[%clk 01:20:58]} {[%emt 00:05:58]} 10.
Nf4 {[%clk 01:12:03]} {[%emt 00:03:13]} Rd8 {[%clk 01:16:13]} {[%emt 00:05:15]}
11. g5 {[%clk 01:06:43]} {[%emt 00:05:51]} Ng8 {[%clk 01:16:25]} {[%emt
00:00:18]} 12. Na4 {[%clk 00:55:02]} {[%emt 00:12:11]} b6 {[%clk 01:07:52]}
{[%emt 00:09:03]} 13. Bb5 {[%clk 00:52:43]} {[%emt 00:02:49]} Bf5 {[%clk
01:01:16]} {[%emt 00:07:06]} 14. Nc3 {[%clk 00:47:23]} {[%emt 00:05:51]} e6
{[%clk 00:56:47]} {[%emt 00:04:59]} 15. e4 {[%clk 00:44:19]} {[%emt 00:03:34]}
Bg6 {[%clk 00:56:32]} {[%emt 00:00:45]} 16. exd5 {[%clk 00:42:26]} {[%emt
00:02:22]} exd5 {[%clk 00:55:39]} {[%emt 00:01:23]} 17. Ncxd5 {[%clk 00:41:32]}
{[%emt 00:01:24]} Bd6 {[%clk 00:52:43]} {[%emt 00:03:27]} 18. Kf2 {[%clk
00:36:21]} {[%emt 00:05:40]} Bxf4 {[%clk 00:48:08]} {[%emt 00:05:05]} 19. Bxf4
{[%clk 00:36:07]} {[%emt 00:00:45]} Qxd5 {[%clk 00:48:06]} {[%emt 00:00:31]} 20.
Qxd5 {[%clk 00:36:31]} {[%emt 00:00:06]} Rxd5 {[%clk 00:48:28]} {[%emt
00:00:07]} 21. Bxc6+ {[%clk 00:36:57]} {[%emt 00:00:04]} Kd8 {[%clk 00:48:49]}
{[%emt 00:00:09]} 22. Bxd5 {[%clk 00:37:06]} {[%emt 00:00:22]} Ne7 {[%clk
00:49:01]} {[%emt 00:00:18]} 23. Bc4 {[%clk 00:37:03]} {[%emt 00:00:33]} Nf5
{[%clk 00:48:38]} {[%emt 00:00:53]} 24. Rhe1 {[%clk 00:36:49]} {[%emt
00:00:43]} Re8 {[%clk 00:48:10]} {[%emt 00:00:59]} 25. Bc7+ {[%clk 00:36:47]}
{[%emt 00:00:32]} Kd7 {[%clk 00:48:13]} {[%emt 00:00:27]} 26. Bb5+ {[%clk
00:37:04]} {[%emt 00:00:13]} Kxc7 {[%clk 00:48:36]} {[%emt 00:00:07]} 27. Rxe8
{[%clk 00:37:17]} {[%emt 00:00:17]} Nd6 {[%clk 00:48:56]} {[%emt 00:00:11]} 28.
Rc1+ {[%clk 00:36:07]} {[%emt 00:01:40]} Kb7 {[%clk 00:49:11]} {[%emt
00:00:15]} 29. Re7+ {[%clk 00:34:53]} {[%emt 00:01:43]} Kb8 {[%clk 00:49:21]}
{[%emt 00:00:20]} 30. Ba6 {[%clk 00:35:08]} {[%emt 00:00:14]} Bf5 {[%clk
00:49:29]} {[%emt 00:00:22]} 31. Rc6 {[%clk 00:34:24]} {[%emt 00:01:15]} Bc8
{[%clk 00:49:34]} {[%emt 00:00:26]} 32. Bxc8 {[%clk 00:34:34]} {[%emt
00:00:20]} Nxc8 {[%clk 00:49:49]} {[%emt 00:00:14]} 33. Re8 {[%clk 00:35:00]}
{[%emt 00:00:05]} Kb7 {[%clk 00:50:12]} {[%emt 00:00:07]} 34. Rexc8 {[%clk
00:35:21]} {[%emt 00:00:09]} a5 {[%clk 00:50:33]} {[%emt 00:00:09]} 35. R6c7+
{[%clk 00:35:32]} {[%emt 00:00:18]} Ka6 {[%clk 00:50:52]} {[%emt 00:00:11]} 36.
a4 {[%clk 00:35:35]} {[%emt 00:00:27]} b5 {[%clk 00:51:18]} {[%emt 00:00:05]}
37. Rc6+ {[%clk 00:35:34]} {[%emt 00:00:32]} Kb7 {[%clk 00:51:36]} {[%emt
00:00:12]} 38. axb5 {[%clk 00:35:56]} {[%emt 00:00:08]} a4 {[%clk 00:51:48]}
{[%emt 00:00:19]} 39. R8c7+ {[%clk 00:35:47]} {[%emt 00:00:38]} Kb8 {[%clk
00:51:51]} {[%emt 00:00:27]} 40. Rxf7 {[%clk 00:36:03]} {[%emt 00:00:14]} Ka8
{[%clk 00:52:11]} {[%emt 00:00:10]} 41. Rc8# {[%clk 00:36:30]} {[%emt
00:00:03]} 1-0

[Event "Ebbe cup 43"]
[Site "Schackcentrum, Vegatan 20, Gothenburg, Sweden"]
[Date "2022.09.11"]
[Round "4.4"]
[White "Dahlin, Emil"]
[Black "Havner, Arvid"]
[Result "0-1"]
[TimeControl "90 minutes for 40 moves + 15 minutes for the rest of the game + 30 seconds per move from move one."]
[WhiteFideId "1771035"]
[BlackFideId "1769308"]
[WhiteElo "1133"]
[BlackElo "1677"]

1. e4 {[%clk 01:30:57]} {[%emt 00:00:03]} c5 {[%clk 01:30:53]} {[%emt
00:00:08]} 2. Nf3 {[%clk 01:31:08]} {[%emt 00:00:18]} d6 {[%clk 01:31:12]}
{[%emt 00:00:11]} 3. Nc3 {[%clk 01:31:04]} {[%emt 00:00:34]} Nc6 {[%clk
01:30:36]} {[%emt 00:01:06]} 4. Bb5 {[%clk 01:30:33]} {[%emt 00:01:00]} Bd7
{[%clk 01:30:45]} {[%emt 00:00:21]} 5. d3 {[%clk 01:29:52]} {[%emt 00:01:11]}
Nf6 {[%clk 01:30:15]} {[%emt 00:01:00]} 6. Bg5 {[%clk 01:29:22]} {[%emt
00:00:59]} e6 {[%clk 01:28:54]} {[%emt 00:01:51]} 7. O-O {[%clk 01:27:43]}
{[%emt 00:02:09]} Be7 {[%clk 01:29:06]} {[%emt 00:00:17]} 8. Re1 {[%clk
01:27:07]} {[%emt 00:01:06]} O-O {[%clk 01:25:51]} {[%emt 00:03:46]} 9. Bxc6
{[%clk 01:17:40]} {[%emt 00:09:56]} Bxc6 {[%clk 01:24:52]} {[%emt 00:01:29]} 10.
e5 {[%clk 01:16:54]} {[%emt 00:01:16]} Nd5 {[%clk 01:24:31]} {[%emt 00:00:51]}
11. Nxd5 {[%clk 01:12:38]} {[%emt 00:04:45]} Bxg5 {[%clk 01:24:29]} {[%emt
00:00:33]} 12. Nc3 {[%clk 01:08:39]} {[%emt 00:04:30]} Be7 {[%clk 01:22:05]}
{[%emt 00:02:53]} 13. d4 {[%clk 01:04:48]} {[%emt 00:04:21]} Bxf3 {[%clk
01:14:49]} {[%emt 00:07:46]} 14. Qxf3 {[%clk 00:53:04]} {[%emt 00:12:13]} cxd4
{[%clk 01:12:57]} {[%emt 00:02:23]} 15. Ne2 {[%clk 00:53:04]} {[%emt 00:00:30]}
Qb6 {[%clk 01:11:45]} {[%emt 00:01:40]} 16. exd6 {[%clk 00:52:52]} {[%emt
00:00:42]} Bxd6 {[%clk 01:11:51]} {[%emt 00:00:25]} 17. b3 {[%clk 00:50:57]}
{[%emt 00:02:26]} Bb4 {[%clk 01:09:50]} {[%emt 00:02:30]} 18. Red1 {[%clk
00:50:20]} {[%emt 00:01:07]} Rfd8 {[%clk 01:07:40]} {[%emt 00:02:39]} 19. a3
{[%clk 00:45:04]} {[%emt 00:05:47]} Be7 {[%clk 01:05:09]} {[%emt 00:03:00]} 20.
Qe4 {[%clk 00:42:50]} {[%emt 00:02:44]} Bf6 {[%clk 01:04:55]} {[%emt 00:00:43]}
21. Rac1 {[%clk 00:36:20]} {[%emt 00:07:01]} Rac8 {[%clk 01:00:29]} {[%emt
00:04:55]} 22. h3 {[%clk 00:32:38]} {[%emt 00:04:12]} Bg5 {[%clk 00:56:11]}
{[%emt 00:04:48]} 23. Rb1 {[%clk 00:31:50]} {[%emt 00:01:18]} Bf6 {[%clk
00:50:49]} {[%emt 00:05:52]} 24. b4 {[%clk 00:30:47]} {[%emt 00:01:34]} Qc6
{[%clk 00:49:31]} {[%emt 00:01:47]} 25. Qxc6 {[%clk 00:30:42]} {[%emt
00:00:35]} Rxc6 {[%clk 00:49:50]} {[%emt 00:00:12]} 26. Rbc1 {[%clk 00:29:40]}
{[%emt 00:01:32]} e5 {[%clk 00:49:16]} {[%emt 00:01:04]} 27. c3 {[%clk
00:24:32]} {[%emt 00:05:38]} d3 {[%clk 00:47:49]} {[%emt 00:01:56]} 28. Ng3
{[%clk 00:23:22]} {[%emt 00:01:40]} Bg5 {[%clk 00:44:19]} {[%emt 00:04:00]} 29.
Nf5 {[%clk 00:23:08]} {[%emt 00:00:45]} g6 {[%clk 00:38:34]} {[%emt 00:06:15]}
30. Ne3 {[%clk 00:23:20]} {[%emt 00:00:18]} f5 {[%clk 00:38:27]} {[%emt
00:00:36]} 31. f3 {[%clk 00:22:10]} {[%emt 00:01:41]} Bxe3+ {[%clk 00:38:18]}
{[%emt 00:00:39]} 32. Kf1 {[%clk 00:21:36]} {[%emt 00:01:04]} Bxc1 {[%clk
00:38:45]} {[%emt 00:00:02]} 33. Rxc1 {[%clk 00:21:50]} {[%emt 00:00:17]} Rxc3
{[%clk 00:38:31]} {[%emt 00:00:45]} 34. Rd1 {[%clk 00:20:43]} {[%emt 00:01:37]}
Rxa3 {[%clk 00:38:14]} {[%emt 00:00:47]} 35. Kf2 {[%clk 00:19:58]} {[%emt
00:01:14]} Ra2+ {[%clk 00:38:42]} {[%emt 00:00:02]} 36. Kf1 {[%clk 00:20:01]}
{[%emt 00:00:27]} e4 {[%clk 00:38:53]} {[%emt 00:00:20]} 37. fxe4 {[%clk
00:19:35]} {[%emt 00:00:55]} fxe4 {[%clk 00:39:21]} {[%emt 00:00:02]} 38. g3
{[%clk 00:18:56]} {[%emt 00:01:09]} e3 {[%clk 00:39:18]} {[%emt 00:00:34]} 0-1

[Event "Ebbe cup 43"]
[Site "Schackcentrum, Vegatan 20, Gothenburg, Sweden"]
[Date "2022.09.11"]
[Round "5.1"]
[White "Havner, Arvid"]
[Black "Eldh, Hjalmar"]
[Result "0-1"]
[TimeControl "90 minutes for 40 moves + 15 minutes for the rest of the game + 30 seconds per move from move one."]
[WhiteFideId "1769308"]
[BlackFideId "1767968"]
[WhiteElo "1677"]
[BlackElo "1717"]

1. e4 {[%clk 01:30:59]} e5 {[%clk 01:30:53]} {[%emt 00:00:07]} 2. Nf3 {[%clk
01:31:24]} {[%emt 00:00:05]} Nc6 {[%clk 01:31:13]} {[%emt 00:00:10]} 3. d4
{[%clk 01:31:41]} {[%emt 00:00:14]} exd4 {[%clk 01:31:33]} {[%emt 00:00:09]} 4.
Nxd4 {[%clk 01:32:09]} {[%emt 00:00:01]} Nf6 {[%clk 01:31:52]} {[%emt
00:00:10]} 5. Nxc6 {[%clk 01:32:11]} {[%emt 00:00:29]} bxc6 {[%clk 01:32:15]}
{[%emt 00:00:07]} 6. e5 {[%clk 01:32:26]} {[%emt 00:00:16]} Nd5 {[%clk
01:32:03]} {[%emt 00:00:41]} 7. c4 {[%clk 01:32:38]} {[%emt 00:00:19]} Nb6
{[%clk 01:32:28]} {[%emt 00:00:05]} 8. Nc3 {[%clk 01:32:45]} {[%emt 00:00:24]}
d5 {[%clk 01:32:50]} {[%emt 00:00:07]} 9. cxd5 {[%clk 01:33:02]} {[%emt
00:00:13]} cxd5 {[%clk 01:33:11]} {[%emt 00:00:09]} 10. Bb5+ {[%clk 01:33:00]}
{[%emt 00:00:32]} Bd7 {[%clk 01:33:32]} {[%emt 00:00:09]} 11. Qd3 {[%clk
01:30:37]} {[%emt 00:02:53]} c6 {[%clk 01:33:42]} {[%emt 00:00:19]} 12. Ba4
{[%clk 01:30:29]} {[%emt 00:00:39]} Nxa4 {[%clk 01:32:09]} {[%emt 00:02:03]} 13.
Nxa4 {[%clk 01:30:11]} {[%emt 00:00:47]} Bb4+ {[%clk 01:32:18]} {[%emt
00:00:19]} 14. Nc3 {[%clk 01:29:23]} {[%emt 00:01:20]} O-O {[%clk 01:32:34]}
{[%emt 00:00:13]} 15. O-O {[%clk 01:29:17]} {[%emt 00:00:38]} Re8 {[%clk
01:29:51]} {[%emt 00:03:13]} 16. Qg3 {[%clk 01:25:05]} {[%emt 00:04:41]} Rb8
{[%clk 01:27:46]} {[%emt 00:02:35]} 17. Bh6 {[%clk 01:22:48]} {[%emt 00:02:48]}
Bf8 {[%clk 01:28:05]} {[%emt 00:00:12]} 18. b3 {[%clk 01:13:37]} {[%emt
00:09:42]} Bf5 {[%clk 01:26:58]} {[%emt 00:01:36]} 19. Rae1 {[%clk 01:09:54]}
{[%emt 00:04:13]} Bg6 {[%clk 01:24:14]} {[%emt 00:03:13]} 20. Bc1 {[%clk
01:05:12]} {[%emt 00:05:12]} Qd7 {[%clk 01:20:17]} {[%emt 00:04:27]} 21. f4
{[%clk 01:01:58]} {[%emt 00:03:44]} Bc5+ {[%clk 01:15:09]} {[%emt 00:05:37]} 22.
Kh1 {[%clk 01:02:14]} {[%emt 00:00:15]} h5 {[%clk 01:13:28]} {[%emt 00:02:11]}
23. Qf3 {[%clk 00:52:11]} {[%emt 00:10:34]} Qg4 {[%clk 01:12:00]} {[%emt
00:01:57]} 24. f5 {[%clk 00:50:52]} {[%emt 00:01:49]} Qxf3 {[%clk 01:12:11]}
{[%emt 00:00:19]} 25. Rxf3 {[%clk 00:51:19]} {[%emt 00:00:02]} Bh7 {[%clk
01:12:28]} {[%emt 00:00:13]} 26. Na4 {[%clk 00:42:54]} {[%emt 00:08:56]} Bd4
{[%clk 01:12:19]} {[%emt 00:00:38]} 27. Bb2 {[%clk 00:40:16]} {[%emt 00:03:10]}
Rb4 {[%clk 01:10:37]} {[%emt 00:02:10]} 28. Bxd4 {[%clk 00:37:01]} {[%emt
00:03:46]} Rxd4 {[%clk 01:11:04]} {[%emt 00:00:03]} 29. Nc5 {[%clk 00:36:56]}
{[%emt 00:00:35]} Rxe5 {[%clk 01:11:16]} {[%emt 00:00:19]} 30. Nd3 {[%clk
00:31:44]} {[%emt 00:05:42]} Rxd3 {[%clk 01:11:26]} 0-1

[Event "Ebbe cup 43"]
[Site "Schackcentrum, Vegatan 20, Gothenburg, Sweden"]
[Date "2022.09.11"]
[Round "5.2"]
[White "Imani Lasaki, Hamed"]
[Black "Josefsson, Ivar"]
[Result "0-1"]
[TimeControl "90 minutes for 40 moves + 15 minutes for the rest of the game + 30 seconds per move from move one."]
[WhiteFideId "1766970"]
[BlackFideId "1766040"]
[WhiteElo "1595"]
[BlackElo "1634"]

1. d4 {[%clk 01:23:39]} {[%emt 00:07:21]} d5 {[%clk 01:30:52]} {[%emt
00:00:09]} 2. c4 {[%clk 01:24:04]} {[%emt 00:00:04]} e6 {[%clk 01:31:18]}
{[%emt 00:00:04]} 3. Nc3 {[%clk 01:23:58]} {[%emt 00:00:37]} c5 {[%clk
01:31:43]} {[%emt 00:00:05]} 4. cxd5 {[%clk 01:23:21]} {[%emt 00:01:07]} exd5
{[%clk 01:32:05]} {[%emt 00:00:08]} 5. dxc5 {[%clk 01:18:58]} {[%emt 00:04:52]}
d4 {[%clk 01:32:27]} {[%emt 00:00:08]} 6. Qa4+ {[%clk 01:17:30]} {[%emt
00:01:58]} Nc6 {[%clk 01:32:19]} {[%emt 00:00:37]} 7. Nb5 {[%clk 01:15:45]}
{[%emt 00:02:16]} Bxc5 {[%clk 01:31:25]} {[%emt 00:01:25]} 8. Bf4 {[%clk
01:12:25]} {[%emt 00:03:49]} Bb4+ {[%clk 01:28:51]} {[%emt 00:03:04]} 9. Kd1
{[%clk 01:12:21]} {[%emt 00:00:33]} Ba5 {[%clk 01:27:05]} {[%emt 00:02:16]} 10.
Nd6+ {[%clk 01:11:08]} {[%emt 00:01:43]} Kf8 {[%clk 01:27:13]} {[%emt
00:00:22]} 11. Qb3 {[%clk 01:07:56]} {[%emt 00:03:43]} Qf6 {[%clk 01:20:23]}
{[%emt 00:07:20]} 12. e3 {[%clk 00:59:41]} {[%emt 00:08:45]} dxe3 {[%clk
01:03:44]} {[%emt 00:17:09]} 13. fxe3 {[%clk 00:58:30]} {[%emt 00:01:42]} g5
{[%clk 01:03:04]} {[%emt 00:01:09]} 14. Ne4 {[%clk 00:51:11]} {[%emt 00:07:49]}
Qd8+ {[%clk 00:44:35]} {[%emt 00:18:59]} 15. Bd6+ {[%clk 00:50:42]} {[%emt
00:00:58]} Nge7 {[%clk 00:44:49]} {[%emt 00:00:16]} 16. Bd3 {[%clk 00:40:03]}
{[%emt 00:11:09]} Be6 {[%clk 00:36:07]} {[%emt 00:09:12]} 17. Qxb7 {[%clk
00:33:57]} {[%emt 00:06:36]} Rc8 {[%clk 00:29:35]} {[%emt 00:07:02]} 18. Ke2
{[%clk 00:30:07]} {[%emt 00:04:20]} Bd5 {[%clk 00:26:00]} {[%emt 00:04:04]} 19.
Bxe7+ {[%clk 00:22:19]} {[%emt 00:08:19]} Nxe7 {[%clk 00:26:12]} {[%emt
00:00:17]} 20. Qa6 {[%clk 00:20:20]} {[%emt 00:02:29]} Bxe4 {[%clk 00:21:36]}
{[%emt 00:05:07]} 21. Bxe4 {[%clk 00:19:19]} {[%emt 00:01:30]} Qd2+ {[%clk
00:21:23]} {[%emt 00:00:43]} 22. Kf3 {[%clk 00:19:14]} {[%emt 00:00:35]} g4+
{[%clk 00:17:51]} {[%emt 00:04:03]} 23. Kxg4 {[%clk 00:18:29]} {[%emt
00:01:14]} Rg8+ {[%clk 00:16:43]} {[%emt 00:01:38]} 24. Kh3 {[%clk 00:17:39]}
{[%emt 00:01:19]} Qd7+ {[%clk 00:14:57]} {[%emt 00:02:16]} 0-1